bitfinex-derivatives/quotes_BNBF0:USTF0_20250326
["timestamp","ask_amount","ask_price","bid_price","bid_amount"]
[1742982617599,1.18892606,630.51,629.77,0.26467091]
[1742982617808,1.18892929,630.5,629.77,0.26467091]
[1742982618005,1.18892929,630.49,629.77,0.26467091]
[1742982618206,1.18892929,630.48,629.77,0.26467091]
[1742982618406,1.18892929,630.47,629.77,0.26467091]
[1742982618705,1.18892929,630.46,629.77,0.26467091]
[1742982618906,1.18892929,630.45,629.77,0.26467091]
[1742982619114,1.18892929,630.44,629.77,0.26467091]
[1742982619298,1.18892929,630.43,629.85,1.18765164]
[1742982619499,1.18892929,630.42,629.85,1.18765164]
[1742982619703,1.18892929,630.41,629.85,1.18765164]
[1742982619904,1.18892929,630.4,629.85,1.18765164]
[1742982620101,1.18892929,630.39,629.85,1.18765164]
[1742982620302,1.18892929,630.38,629.85,1.18765164]
[1742982620501,1.18892929,630.37,629.85,1.18765164]
[1742982620803,1.18892929,630.36,629.85,1.18765164]
[1742982621006,1.18892929,630.35,629.85,1.18765164]
[1742982621207,1.18892929,630.34,629.85,1.18765164]
[1742982621407,1.18892929,630.33,629.87,1.18765164]
[1742982621603,1.18892929,630.32,629.87,1.18765164]
[1742982621801,1.18892929,630.31,629.87,1.18765164]
[1742982622002,1.18892929,630.3,629.87,1.18765164]
[1742982622204,1.18892929,630.29,629.87,1.18765164]
[1742982622400,1.18892929,630.28,629.87,1.18765164]
[1742982622602,1.18906374,630.27,629.87,1.18765164]
[1742982622813,1.18906374,630.26,629.87,1.18765164]
[1742982623006,1.18907246,630.25,629.87,1.18765164]
[1742982623202,1.18907246,630.24,629.87,1.18765164]
[1742982623408,1.18907246,630.23,629.87,1.18765164]
[1742982623607,1.18907246,630.22,629.87,1.18765164]
[1742982623805,1.18907246,630.21,629.84,1.18765164]
[1742982624006,1.18907246,630.2,629.84,1.18765164]
[1742982624208,0.2761587,630.42,629.84,1.18765164]
[1742982624404,1.1891668,630.41,629.84,1.18765164]
[1742982624604,1.1891668,630.4,629.84,1.18765164]
[1742982624807,1.1891751,630.39,629.84,1.18765164]
[1742982625012,1.1891751,630.38,629.84,1.18765164]
[1742982625203,1.1891751,630.37,629.84,1.18765164]
[1742982625406,1.1891751,630.36,629.84,1.18765164]
[1742982625708,1.189228,630.35,629.84,1.18765164]
[1742982625909,1.189228,630.34,629.86,1.18765164]
[1742982626103,1.189228,630.33,629.86,1.18765164]
[1742982626304,1.189228,630.32,629.86,1.18765164]
[1742982626504,1.189228,630.31,629.86,1.18765164]
[1742982626708,1.189228,630.3,629.86,1.18765164]
[1742982626908,1.189228,630.29,629.86,1.18765164]
[1742982627104,1.189228,630.28,629.86,1.18765164]
[1742982627412,1.189228,630.27,629.87,0.26467866]
[1742982627610,1.189228,630.26,629.88,1.18765164]
[1742982627805,1.189228,630.25,629.88,1.18765164]
[1742982628004,1.189228,630.24,629.88,1.18765164]
[1742982628204,1.189228,630.23,629.88,1.18765164]
[1742982628508,1.189228,630.22,629.88,1.18765164]
[1742982628711,1.189228,630.21,629.88,1.18765164]
[1742982628905,1.189228,630.2,629.88,1.18765164]
[1742982629210,0.31715826,630.6,629.88,1.18765164]
[1742982629410,1.18941435,630.59,629.99,1.18765164]
[1742982629606,1.18941435,630.58,629.99,1.18765164]
[1742982629804,1.18941435,630.57,629.99,1.18765164]
[1742982630002,1.18941435,630.56,629.99,1.18765164]
[1742982630210,1.18941435,630.55,629.99,1.18765164]
[1742982630402,1.18941435,630.54,629.99,1.18765164]
[1742982630607,1.18941435,630.53,629.99,1.18765164]
[1742982630809,1.18941435,630.52,629.99,1.18765164]
[1742982631105,1.18941435,630.51,629.99,1.18765164]
[1742982631310,1.18941435,630.5,629.99,1.18765164]
[1742982631513,1.18941435,630.49,630.02,1.18765164]
[1742982631711,1.18941435,630.48,630.02,1.18765164]
[1742982631911,1.18941435,630.47,630.02,1.18765164]
[1742982632110,1.18941435,630.46,630.02,1.18765164]
[1742982632308,1.18941435,630.45,630.02,1.18765164]
[1742982632610,1.18941435,630.44,630.02,1.18765164]
[1742982632913,1.18941435,630.43,630.02,1.18765164]
[1742982633110,1.18941435,630.42,630.02,1.18765164]
[1742982633412,1.18941435,630.41,630.02,1.18765164]
[1742982633607,1.18941435,630.4,630.02,1.18765164]
[1742982633811,1.18941435,630.39,630.03,1.18765164]
[1742982634012,1.18941435,630.38,630.03,1.18765164]
[1742982634212,1.18941435,630.37,630.03,1.18765164]
[1742982634410,1.18941435,630.36,630.03,1.18765164]
[1742982634610,1.18941435,630.35,630.03,1.18765164]
[1742982634914,1.18941435,630.34,630.03,1.18765164]
[1742982635114,1.18941435,630.33,630.03,1.18765164]
[1742982635314,1.18941435,630.32,630.03,1.18765164]
[1742982635513,1.18941435,630.31,630.03,1.18765164]
[1742982635714,1.18941435,630.3,630.03,1.18765164]
[1742982635914,1.18941435,630.29,629.98,1.18765164]
[1742982636210,1.18941435,630.28,629.98,1.18765164]
[1742982636414,1.18941435,630.27,629.98,1.18765164]
[1742982636715,1.18941435,630.26,629.98,1.18765164]
[1742982637016,1.18941435,630.25,629.98,1.18765164]
[1742982637216,1.18941435,630.24,629.98,1.18765164]
[1742982637415,1.18941435,630.23,629.98,1.18765164]
[1742982637618,1.18941435,630.22,629.98,1.18765164]
[1742982637915,0.31715826,630.6,629.53,1.01020209]
[1742982637916,1.18941435,630.21,629.91,1.18765164]
[1742982638115,1.18941435,630.2,629.91,1.18765164]
[1742982638316,1.18941435,630.19,629.91,1.18765164]
[1742982638516,1.18941435,630.18,629.91,1.18765164]
[1742982638717,0.31715826,630.6,629.91,1.18765164]
[1742982638912,0.27616527,630.42,629.91,1.18765164]
[1742982639215,1.19009738,630.41,629.91,1.18765164]
[1742982639419,1.19009738,630.4,629.91,1.18765164]
[1742982639715,1.19009738,630.39,629.91,1.18765164]
[1742982639917,1.19009738,630.38,629.91,1.18765164]
[1742982640116,1.19009738,630.37,629.91,1.18765164]
[1742982640316,1.19009738,630.36,629.91,1.18765164]
[1742982640517,1.19009738,630.35,629.87,1.18765164]
[1742982640718,1.19009738,630.34,629.87,1.18765164]
[1742982640913,1.19009738,630.33,629.87,1.18765164]
[1742982641218,1.19009738,630.32,629.87,1.18765164]
[1742982641418,1.19009738,630.31,629.87,1.18765164]
[1742982641818,1.19009738,630.3,629.87,1.18765164]
[1742982642117,1.19009738,630.3,629.83,1.18765164]
[1742982642620,1.19009738,630.29,629.83,1.18765164]
[1742982642820,1.19009738,630.28,629.83,1.18765164]
[1742982643013,0.27614445,630.42,629.83,1.18765164]
[1742982643516,1.19036189,630.41,629.83,1.18765164]
[1742982643718,0.31715826,630.6,629.83,1.18765164]
[1742982644119,1.19037278,630.59,629.83,1.18765164]
[1742982644419,2.64284158,631.82,629.9,1.18765164]
[1742982644420,1.5075411,630.58,629.9,1.18765164]
[1742982644615,1.19037278,630.57,629.9,1.18765164]
[1742982644819,1.19032857,630.56,629.9,1.18765164]
[1742982645119,1.19032857,630.55,629.9,1.18765164]
[1742982645318,1.19032857,630.54,629.9,1.18765164]
[1742982645614,1.19032857,630.53,629.9,1.18765164]
[1742982645813,1.19032857,630.52,629.9,1.18765164]
[1742982646015,1.19032857,630.51,629.9,1.18765164]
[1742982646214,1.19032857,630.5,629.9,1.18765164]
[1742982646420,1.19032857,630.49,629.83,1.18765164]
[1742982646620,1.19032857,630.48,629.83,1.18765164]
[1742982646818,1.19032857,630.47,629.83,1.18765164]
[1742982647016,1.19032857,630.46,629.83,1.18765164]
[1742982647220,1.19032857,630.45,629.83,1.18765164]
[1742982647423,1.19032857,630.44,629.83,1.18765164]
[1742982647623,1.19022247,630.43,629.83,1.18765164]
[1742982647922,1.19022247,630.42,629.83,1.18765164]
[1742982648123,1.19022247,630.41,629.83,1.18765164]
[1742982648324,1.19022247,630.4,629.83,1.18765164]
[1742982648525,1.19022247,630.39,629.83,1.18765164]
[1742982648825,1.19022247,630.38,629.83,1.18765164]
[1742982649020,1.19022247,630.37,629.83,1.18765164]
[1742982649225,1.19022247,630.36,629.83,1.18765164]
[1742982649425,1.19022247,630.35,629.83,1.18765164]
[1742982649622,1.19022247,630.34,629.83,1.18765164]
[1742982649825,1.19022247,630.33,629.83,1.18765164]
[1742982650022,0.59330729,630.58,629.75,1.18765164]
[1742982650023,1.19022247,630.32,629.75,1.18765164]
[1742982650224,1.19022247,630.31,629.75,1.18765164]
[1742982650428,1.19022247,630.3,629.75,1.18765164]
[1742982650725,1.19022247,630.29,629.75,1.18765164]
[1742982650924,1.19022247,630.28,629.75,1.18765164]
[1742982651123,1.19022247,630.27,629.75,1.18765164]
[1742982651324,1.19022247,630.26,629.75,1.18765164]
[1742982651524,1.19036664,630.25,629.76,0.26471879]
[1742982651728,1.19036664,630.24,629.76,0.26471879]
[1742982651928,1.19036664,630.23,629.76,0.26471879]
[1742982652132,1.19036664,630.22,629.77,1.18765164]
[1742982652327,1.19036664,630.21,629.77,1.18765164]
[1742982652523,1.19036664,630.2,629.77,1.18765164]
[1742982652727,1.19036664,630.19,629.77,1.18765164]
[1742982652927,1.19036664,630.18,629.77,1.18765164]
[1742982653124,1.19036664,630.17,629.77,1.18765164]
[1742982653425,1.19036664,630.16,629.77,1.18765164]
[1742982653627,0.27620034,630.32,629.77,1.18765164]
[1742982653628,1.19036664,630.15,629.77,1.18765164]
[1742982653932,1.19036664,630.14,629.77,1.18765164]
[1742982654135,1.19036664,630.13,629.77,1.18765164]
[1742982654332,1.19036664,630.12,629.77,1.18765164]
[1742982654528,1.19036664,630.11,629.77,1.18765164]
[1742982654833,1.19036664,630.1,629.87,1.18765164]
[1742982655025,0.27620034,630.32,629.87,1.18765164]
[1742982655228,1.19012096,630.31,629.87,1.18765164]
[1742982655431,1.19012096,630.3,629.87,1.18765164]
[1742982655628,1.19012096,630.29,629.87,1.18765164]
[1742982655831,1.19012096,630.28,629.87,1.18765164]
[1742982656032,1.19012096,630.27,629.87,1.18765164]
[1742982656228,1.19012096,630.26,629.87,1.18765164]
[1742982656427,1.19012096,630.25,629.87,1.18765164]
[1742982656634,1.19012096,630.24,629.87,1.18765164]
[1742982656837,1.19012096,630.23,629.87,1.18765164]
[1742982657030,1.19012096,630.22,629.78,1.18765164]
[1742982657235,1.19012096,630.21,629.78,1.18765164]
[1742982657435,1.19012096,630.2,629.78,1.18765164]
[1742982657635,1.19012096,630.19,629.78,1.18765164]
[1742982657830,1.19012096,630.18,629.78,1.18765164]
[1742982658040,1.19012096,630.17,629.78,1.18765164]
[1742982658231,1.19012096,630.16,629.78,1.18765164]
[1742982658431,1.19012096,630.15,629.78,1.18765164]
[1742982658640,1.19012096,630.14,629.78,1.18765164]
[1742982658936,0.31716832,630.58,629.78,1.18765164]
[1742982658937,1.19012096,630.13,629.78,1.18765164]
[1742982659137,1.19012096,630.12,629.78,1.18765164]
[1742982659336,1.19019645,630.11,629.78,1.18765164]
[1742982659537,0.31716832,630.58,629.78,1.18765164]
[1742982659734,1.19019817,630.57,629.78,1.18765164]
[1742982659932,0.27621021,630.35,629.78,1.18765164]
[1742982660131,1.50737655,630.56,629.78,1.18765164]
[1742982660132,1.19019817,630.34,629.78,1.18765164]
[1742982660333,1.19019817,630.33,629.78,1.18765164]
[1742982660637,1.19019817,630.32,629.78,1.18765164]
[1742982660837,1.19019817,630.31,629.78,1.18765164]
[1742982661038,1.19019817,630.3,629.78,1.18765164]
[1742982661239,1.19019817,630.29,629.76,1.18765164]
[1742982661438,1.19019817,630.28,629.76,1.18765164]
[1742982661639,1.19019817,630.27,629.76,1.18765164]
[1742982661840,1.19019817,630.26,629.76,1.18765164]
[1742982662040,1.19019817,630.25,629.76,1.18765164]
[1742982662242,1.19019817,630.24,629.76,1.18765164]
[1742982662441,1.19019817,630.23,629.76,1.18765164]
[1742982662641,1.19019817,630.22,629.76,1.18765164]
[1742982662943,1.19019817,630.21,629.76,1.18765164]
[1742982663135,1.19019817,630.2,629.76,1.18765164]
[1742982663336,1.19019817,630.19,629.76,1.18765164]
[1742982663537,1.19019817,630.18,629.76,1.18765164]
[1742982663744,1.19019817,630.17,629.76,1.18765164]
[1742982663940,1.19019817,630.16,629.8,1.18765164]
[1742982664244,1.19019817,630.15,629.8,1.18765164]
[1742982664443,1.19019817,630.14,629.8,1.18765164]
[1742982664643,0.31717838,630.56,629.8,1.18765164]
[1742982664844,0.27619048,630.41,629.8,1.18765164]
[1742982665036,1.19048786,630.4,629.8,1.18765164]
[1742982665241,1.19048786,630.39,629.8,1.18765164]
[1742982665547,1.19048786,630.38,629.8,1.18765164]
[1742982665748,1.19048786,630.37,629.8,1.18765164]
[1742982665949,1.19048786,630.36,629.85,1.18765164]
[1742982666151,1.19048786,630.35,629.85,1.18765164]
[1742982666349,1.19048786,630.34,629.85,1.18765164]
[1742982666549,1.19048786,630.33,629.85,1.18765164]
[1742982666749,1.19048786,630.32,629.85,1.18765164]
[1742982666949,1.1906336,630.31,629.85,1.18765164]
[1742982667249,1.1906336,630.3,629.85,1.18765164]
[1742982667446,1.1906336,630.3,629.44,1.01095887]
[1742982667447,1.1906336,630.29,629.8,1.18765164]
[1742982667642,1.1906336,630.28,629.8,1.18765164]
[1742982667844,1.1906336,630.27,629.8,1.18765164]
[1742982668044,1.1906336,630.26,629.8,1.18765164]
[1742982668248,1.1906336,630.25,629.8,1.18765164]
[1742982668447,1.1906336,630.24,629.8,1.18765164]
[1742982668647,1.1906336,630.23,629.8,1.18765164]
[1742982668848,0.27617513,630.41,629.8,1.18765164]
[1742982669047,1.19079085,630.4,629.8,1.18765164]
[1742982669247,1.19079085,630.39,629.8,1.18765164]
[1742982669450,1.19079085,630.39,629.44,1.287134]
[1742982669451,1.19079085,630.38,629.82,1.18765164]
[1742982669749,1.19079085,630.37,629.82,1.18765164]
[1742982669947,1.19079085,630.36,629.82,1.18765164]
[1742982670146,1.19079085,630.35,629.82,1.18765164]
[1742982670346,0.27617513,630.41,629.82,1.18765164]
[1742982670347,1.19100781,630.34,629.82,1.18765164]
[1742982670546,1.19100781,630.33,629.82,1.18765164]
[1742982670749,1.19100781,630.32,629.82,1.18765164]
[1742982670949,1.19100781,630.31,629.82,1.18765164]
[1742982671144,1.19100781,630.3,629.82,1.18765164]
[1742982671347,1.19100781,630.29,629.82,1.18765164]
[1742982671545,1.19100781,630.28,629.82,1.18765164]
[1742982671747,1.19100781,630.27,629.82,1.18765164]
[1742982671950,1.19100781,630.26,629.82,1.18765164]
[1742982672150,1.19100781,630.25,629.82,1.18765164]
[1742982672352,1.19100781,630.24,629.86,1.18765164]
[1742982672651,1.19100781,630.23,629.86,1.18765164]
[1742982672851,1.19113046,630.22,629.86,1.18765164]
[1742982673052,1.19113046,630.21,629.86,1.18765164]
[1742982673352,1.19113046,630.2,629.86,1.18765164]
[1742982673551,1.19113046,630.19,629.86,1.18765164]
[1742982673745,1.19113046,630.18,629.86,1.18765164]
[1742982673949,1.19113046,630.17,629.86,1.18765164]
[1742982674150,1.19113046,630.16,629.86,1.18765164]
[1742982674351,1.19113046,630.15,629.86,1.18765164]
[1742982674653,1.19123766,630.14,629.86,1.18765164]
[1742982674853,0.27616746,630.41,629.86,1.18765164]
[1742982675052,1.19123236,630.4,629.86,1.18765164]
[1742982675252,1.19123236,630.39,629.87,1.18765164]
[1742982675552,1.19123236,630.38,629.87,1.18765164]
[1742982675754,1.19123236,630.37,629.87,1.18765164]
[1742982676053,1.19123236,630.36,629.87,1.18765164]
[1742982676252,1.19123236,630.35,629.87,1.18765164]
[1742982676454,1.19123236,630.34,629.87,1.18765164]
[1742982676652,1.19123236,630.33,629.87,1.18765164]
[1742982676847,1.19123236,630.32,629.87,1.18765164]
[1742982677055,0.27616198,630.41,629.87,1.18765164]
[1742982677056,1.19123236,630.31,629.87,1.18765164]
[1742982677251,1.19123236,630.3,629.87,1.18765164]
[1742982677447,1.19123236,630.29,629.87,1.18765164]
[1742982677649,1.19123236,630.28,629.86,1.18765164]
[1742982677952,1.19123236,630.27,629.86,1.18765164]
[1742982678147,1.19123236,630.26,629.86,1.18765164]
[1742982678346,1.19123236,630.25,629.86,1.18765164]
[1742982678550,1.19123236,630.24,629.86,1.18765164]
[1742982678748,1.19123236,630.23,629.86,1.18765164]
[1742982678952,1.19123236,630.22,629.86,1.18765164]
[1742982679153,1.19123236,630.21,629.86,1.18765164]
[1742982679356,1.19123236,630.2,629.86,1.18765164]
[1742982679550,1.19123236,630.19,629.86,1.18765164]
[1742982679754,1.19123236,630.18,629.86,1.18765164]
[1742982679954,1.19123236,630.17,629.86,1.18765164]
[1742982680149,1.19123236,630.16,629.86,1.18765164]
[1742982680351,1.19123236,630.15,629.86,1.18765164]
[1742982680554,1.19123236,630.14,629.86,1.18765164]
[1742982680854,1.19123236,630.13,629.86,1.18765164]
[1742982681051,1.19123236,630.12,629.87,1.18765164]
[1742982681249,1.19123236,630.11,629.87,1.18765164]
[1742982681553,1.19123236,630.1,629.87,1.18765164]
[1742982681754,0.27617842,630.41,629.87,1.18765164]
[1742982681755,1.19123236,630.09,629.87,1.18765164]
[1742982682054,1.19123236,630.08,629.87,1.18765164]
[1742982682257,1.19123236,630.07,629.87,1.18765164]
[1742982682457,1.19123236,630.06,629.87,1.18765164]
[1742982682755,1.19123236,630.05,629.87,1.18765164]
[1742982682955,0.27620472,630.35,629.87,1.18765164]
[1742982682956,1.19123236,630.04,629.87,1.18765164]
[1742982683155,0.27620472,630.35,629.87,1.18765164]
[1742982683356,1.19123637,630.34,629.87,1.18765164]
[1742982683556,1.19123637,630.33,629.87,1.18765164]
[1742982683753,1.19123637,630.32,629.87,1.18765164]
[1742982683955,1.19123637,630.31,629.87,1.18765164]
[1742982684155,1.19123637,630.3,629.87,1.18765164]
[1742982684458,1.19115942,630.29,629.89,1.18765164]
[1742982684659,1.19115942,630.28,629.89,1.18765164]
[1742982684851,1.19115942,630.27,629.89,1.18765164]
[1742982685054,1.19115942,630.26,629.89,1.18765164]
[1742982685254,1.19115942,630.25,629.89,1.18765164]
[1742982685453,1.19115942,630.24,629.89,1.18765164]
[1742982685653,1.19115942,630.23,629.89,1.18765164]
[1742982685857,1.19115942,630.22,629.89,1.18765164]
[1742982686159,1.19115942,630.21,629.89,1.18765164]
[1742982686359,1.19115942,630.2,629.89,1.18765164]
[1742982686557,1.19115942,630.19,629.89,1.18765164]
[1742982686756,1.19115942,630.18,629.89,1.18765164]
[1742982686957,1.19115942,630.17,629.89,1.18765164]
[1742982687159,1.19115942,630.16,629.92,1.18765164]
[1742982687359,1.19115942,630.15,629.92,1.18765164]
[1742982687556,1.19115942,630.14,629.92,1.18765164]
[1742982687753,1.19115942,630.13,629.92,1.18765164]
[1742982687959,1.19115942,630.12,629.92,1.18765164]
[1742982688162,1.19115942,630.11,629.92,1.18765164]
[1742982688455,1.19080937,630.1,629.92,1.18765164]
[1742982688659,0.27619705,630.31,629.92,1.18765164]
[1742982688660,1.19080937,630.09,629.92,1.18765164]
[1742982688959,1.19080937,630.08,629.92,1.18765164]
[1742982689160,1.19080937,630.07,629.92,1.18765164]
[1742982689460,1.19080937,630.06,629.92,1.18765164]
[1742982689655,1.19080937,630.06,629.42,1.01095887]
[1742982689656,1.19080937,630.05,629.87,1.18765164]
[1742982689856,1.19080937,630.04,629.87,1.18765164]
[1742982690160,1.19080937,630.03,629.87,1.18765164]
[1742982690363,1.19080937,630.02,629.87,1.18765164]
[1742982690562,1.1906912,630.01,629.87,1.18765164]
[1742982690862,0.2762113,630.3,629.87,1.18765164]
[1742982691059,1.19070658,630.29,629.87,1.18765164]
[1742982691259,1.19070658,630.28,629.87,1.18765164]
[1742982691556,1.19070658,630.27,629.87,1.18765164]
[1742982691761,0.2762113,630.3,629.87,1.18765164]
[1742982691762,1.19070658,630.26,629.87,1.18765164]
[1742982691959,1.19070658,630.25,629.87,1.18765164]
[1742982692157,1.19070658,630.24,629.87,1.18765164]
[1742982692358,1.19070658,630.23,629.87,1.18765164]
[1742982692561,1.19070658,630.22,629.87,1.18765164]
[1742982692855,1.19070658,630.21,629.82,1.18765164]
[1742982693063,1.19070658,630.2,629.82,1.18765164]
[1742982693261,1.19070658,630.19,629.82,1.18765164]
[1742982693463,1.19070658,630.18,629.82,1.18765164]
[1742982693657,1.19070658,630.17,629.82,1.18765164]
[1742982693863,1.19070658,630.16,629.82,1.18765164]
[1742982694061,1.19070658,630.15,629.82,1.18765164]
[1742982694262,1.19070658,630.14,629.82,1.18765164]
[1742982694462,1.19070658,630.13,629.82,1.18765164]
[1742982694666,1.19070658,630.12,629.82,1.18765164]
[1742982694865,1.19070658,630.11,629.82,1.18765164]
[1742982695064,1.19070658,630.1,629.82,1.18765164]
[1742982695365,1.19070658,630.09,629.82,1.18765164]
[1742982695560,1.19070658,630.08,629.82,1.18765164]
[1742982695762,1.19070658,630.07,629.84,1.18765164]
[1742982695965,1.19070658,630.06,629.84,1.18765164]
[1742982696165,1.19070658,630.05,629.84,1.18765164]
[1742982696463,0.2762113,630.3,629.84,1.18765164]
[1742982696464,1.19070658,630.04,629.84,1.18765164]
[1742982696764,1.19070658,630.03,629.84,1.18765164]
[1742982696964,1.19070658,630.02,629.84,1.18765164]
[1742982697159,1.19070658,630.01,629.78,1.18765164]
[1742982697361,0.2762113,630.3,629.78,1.18765164]
[1742982697562,1.19064132,630.29,629.78,1.18765164]
[1742982697758,1.19064132,630.28,629.78,1.18765164]
[1742982697963,1.19064132,630.27,629.78,1.18765164]
[1742982698264,1.19064132,630.26,629.78,1.18765164]
[1742982698565,1.19064132,630.25,629.78,1.18765164]
[1742982698765,1.19064132,630.24,629.78,1.18765164]
[1742982699065,1.19064132,630.23,629.78,1.18765164]
[1742982699261,1.19064132,630.22,629.78,1.18765164]
[1742982699464,1.19064132,630.21,629.78,1.18765164]
[1742982699666,1.19064132,630.2,629.78,1.18765164]
[1742982699960,1.19064132,630.2,629.49,1.18443358]
[1742982699961,1.19064132,630.19,629.8,1.18765164]
[1742982700158,1.19064132,630.18,629.8,1.18765164]
[1742982700360,1.19064132,630.17,629.8,1.18765164]
[1742982700561,1.19064132,630.16,629.8,1.18765164]
[1742982700765,1.19064132,630.15,629.8,1.18765164]
[1742982700959,1.19064132,630.14,629.8,1.18765164]
[1742982701161,1.19064132,630.13,629.8,1.18765164]
[1742982701359,1.19064132,630.12,629.8,1.18765164]
[1742982701559,1.19064132,630.11,629.8,1.18765164]
[1742982701764,1.19064132,630.1,629.8,1.18765164]
[1742982701964,1.19064132,630.09,629.8,1.18765164]
[1742982702166,1.19059817,630.08,629.8,1.18765164]
[1742982702365,1.19059817,630.07,629.8,1.18765164]
[1742982702567,0.2762113,630.3,629.8,1.18765164]
[1742982702761,1.19058246,630.29,629.81,1.18765164]
[1742982703066,1.19058246,630.28,629.81,1.18765164]
[1742982703267,1.19058246,630.27,629.81,1.18765164]
[1742982703567,1.19058246,630.26,629.81,1.18765164]
[1742982703762,1.19058246,630.25,629.81,1.18765164]
[1742982703967,1.19054269,630.24,629.81,1.18765164]
[1742982704163,1.1905599,630.23,629.81,1.18765164]
[1742982704564,0.27620034,630.3,629.81,1.18765164]
[1742982705370,0.27620034,630.3,629.79,1.18765164]
[1742982705671,1.19056065,630.29,629.79,1.18765164]
[1742982705870,1.19056065,630.28,629.79,1.18765164]
[1742982706066,0.27620034,630.3,629.79,1.18765164]
[1742982706067,1.19056065,630.27,629.79,1.18765164]
[1742982706269,1.19056065,630.26,629.79,1.18765164]
[1742982706463,1.19056065,630.25,629.79,1.18765164]
[1742982706765,1.19056065,630.24,629.79,1.18765164]
[1742982706968,1.19056065,630.23,629.79,1.18765164]
[1742982707170,1.19056065,630.22,629.79,1.18765164]
[1742982707365,0.31717838,630.56,629.79,1.18765164]
[1742982707565,1.19025669,630.55,629.61,1.18765164]
[1742982707765,1.50744513,630.54,629.61,1.18765164]
[1742982707967,1.50745016,630.53,629.61,1.18765164]
[1742982708170,1.50745519,630.52,629.61,1.18765164]
[1742982708371,0.63290587,631.53,629.61,1.18765164]
[1742982708372,1.50746022,630.51,629.61,1.18765164]
[1742982708571,1.50746525,630.5,629.61,1.18765164]
[1742982708767,1.50747028,630.49,629.61,1.18765164]
[1742982708969,1.50747531,630.48,629.61,1.18765164]
[1742982709167,1.50748034,630.47,629.61,1.18765164]
[1742982709371,1.50748538,630.46,629.61,1.18765164]
[1742982709667,1.19025669,630.45,629.61,1.18765164]
[1742982709875,1.19025669,630.44,629.61,1.18765164]
[1742982710072,1.19025669,630.43,629.61,1.18765164]
[1742982710371,1.19025669,630.42,629.63,1.18765164]
[1742982710566,1.19025669,630.41,629.63,1.18765164]
[1742982710771,1.19025669,630.4,629.63,1.18765164]
[1742982711071,1.5075206,630.39,629.63,1.18765164]
[1742982711272,1.50752563,630.38,629.63,1.18765164]
[1742982711571,1.19025669,630.37,629.63,1.18765164]
[1742982711774,1.19025669,630.36,629.63,1.18765164]
[1742982712071,1.19025669,630.35,629.63,1.18765164]
[1742982712271,1.19025669,630.35,629.3,0.27621678]
[1742982712272,1.19025669,630.34,629.68,1.18765164]
[1742982712466,1.19025669,630.33,629.68,1.18765164]
[1742982712671,1.19025669,630.32,629.68,1.18765164]
[1742982712874,1.19025669,630.31,629.68,1.18765164]
[1742982713066,1.19025669,630.3,629.68,1.18765164]
[1742982713367,1.19025669,630.29,629.69,0.26477552]
[1742982713570,1.19025669,630.28,629.69,0.26477552]
[1742982713771,1.19025669,630.27,629.69,0.26477552]
[1742982714072,1.19025669,630.26,629.68,1.18765164]
[1742982714265,0.27623213,630.28,629.76,1.18765164]
[1742982714266,1.19025669,630.25,629.76,1.18765164]
[1742982714468,1.19025669,630.24,629.76,1.18765164]
[1742982714670,1.19025669,630.23,629.76,1.18765164]
[1742982714971,1.19025669,630.22,629.76,1.18765164]
[1742982715166,1.19025669,630.21,629.76,1.18765164]
[1742982715368,1.19025669,630.2,629.76,1.18765164]
[1742982715568,1.19025669,630.19,629.76,1.18765164]
[1742982715866,1.19025669,630.18,629.76,1.18765164]
[1742982716071,1.19025669,630.17,629.76,1.18765164]
[1742982716371,1.19025669,630.16,629.76,1.18765164]
[1742982716568,1.19025669,630.15,629.76,1.18765164]
[1742982716772,1.19025669,630.14,629.76,1.18765164]
[1742982716965,1.19025669,630.13,629.76,1.18765164]
[1742982717166,1.19025669,630.12,629.76,1.18765164]
[1742982717368,1.19025669,630.11,629.76,1.18765164]
[1742982717567,1.19025669,630.1,629.76,1.18765164]
[1742982717772,1.19025669,630.09,629.76,1.18765164]
[1742982717968,0.27623213,630.21,629.71,1.18765164]
[1742982717969,1.19025669,630.08,629.71,1.18765164]
[1742982718173,1.19025669,630.07,629.71,1.18765164]
[1742982718373,1.19025669,630.06,629.71,1.18765164]
[1742982718573,0.27623213,630.21,629.71,1.18765164]
[1742982718574,1.19025669,630.05,629.71,1.18765164]
[1742982718774,1.19025669,630.04,629.71,1.18765164]
[1742982718974,1.19025669,630.03,629.71,1.18765164]
[1742982719174,1.19025669,630.02,629.71,1.18765164]
[1742982719374,1.19025669,630.01,629.71,1.18765164]
[1742982719571,1.19025669,630.0,629.71,1.18765164]
[1742982719775,0.27623213,630.21,629.71,1.18765164]
[1742982719776,1.19025669,629.99,629.71,1.18765164]
[1742982719975,1.19025669,629.98,629.6,1.18765164]
[1742982720174,0.27623213,630.21,629.6,1.18765164]
[1742982720376,1.18925865,630.2,629.6,1.18765164]
[1742982720578,1.18925865,630.19,629.6,1.18765164]
[1742982720777,1.18925865,630.18,629.6,1.18765164]
[1742982720977,1.18925865,630.17,629.6,1.18765164]
[1742982721177,1.18915082,630.16,629.6,1.18765164]
[1742982721372,1.18915082,630.15,629.6,1.18765164]
[1742982721573,1.18915082,630.14,629.6,1.18765164]
[1742982721777,1.18915082,630.13,629.6,1.18765164]
[1742982721974,1.18915082,630.12,629.6,1.18765164]